Cogmind - Beta 16 @@@ ROGUE MODE // 2025.12.08 @ 10:51:29 Player: Mozco Result: Destroyed by 6S-H0T with 6S-H0T's Six Shooter Performance ------------- Evolutions (5) 2500 Regions Visited (12) 2400 Robots Destroyed (294) 1470 Value Destroyed (11194) 11194 Prototype IDs (35) 700 Alien Tech Used (0) 0 Bonus (4179) 4179 TOTAL SCORE: 22443 Bonus ------- High Alert Combat Kills 1271 Follower Combat Kills 2016 Network Hubs Disabled 200 Built Enhanced Grunts 300 A7 Reached Mainframe 300 Met R17 at Cetus 500 Friendly Fire -408 Cogmind --------- Core Integrity 0/1000 Matter 116/300 Energy 13/100 System Corruption 23% Temperature Cool (4) Movement Hovering (40) Location -5/Factory Parts ------- > --- POWER (2) -------- (None) > --- PROPULSION (5) --- Linear Gravjet Linear Gravjet > --- UTILITY (7) ------ (None) > --- WEAPON (3) ------- (None) > --- INVENTORY (5) ---- Enhanced Flexi-carbon Leg Advanced Particle Charger Centrium Medium Armor Plating Authchip [Device] Plasma Cutter Peak State ------------ > --- POWER ------------ Quantum Reactor Quantum Reactor > --- PROPULSION ------- Armored Leg Armored Leg Enhanced Flexi-carbon Leg Enhanced Flexi-carbon Leg Myomer Leg > --- UTILITY ---------- Cryofiber Web Advanced Heat Sink Advanced Heat Sink High-capacity Storage Unit Advanced Energy Well Centrium Medium Armor Plating Centrium Medium Armor Plating > --- WEAPON ----------- Improved Lightning Gun Advanced KE Penetrator Advanced KE Penetrator > --- INVENTORY -------- Quantum Reactor Flexi-carbon Leg Flexi-carbon Leg Enhanced Flexi-carbon Leg Enhanced Flexi-carbon Leg Advanced Heat Sink Improved Particle Charger Centrium Medium Armor Plating Authchip [Device] Improved Dynamic Insulation System Proton Cannon Proton Cannon Advanced KE Penetrator Advanced KE Penetrator Advanced KE Penetrator Advanced KE Penetrator Improved Proton Missile Launcher Guided Missile Launcher Plasma Cutter [Rating: 123] Favorites ----------- Power Enhanced Nuclear Core Engine Reinforced Deuterium Engine Power Core Enhanced Nuclear Core Reactor Quantum Reactor Propulsion Medium Treads Treads Medium Treads Leg Improved Carbon-fiber Leg Hover Unit Linear Gravjet Utility Advanced Heat Sink Device Advanced Heat Sink Storage High-capacity Storage Unit Processor Improved Signal Interpreter Hackware Hacking Suite Protection Improved Light Armor Plating Weapon Shock Rifle Energy Gun Shock Rifle Energy Cannon Proton Cannon Ballistic Gun Advanced KE Penetrator Ballistic Cannon Enhanced Gauss Cannon Launcher Improved Proton Missile Launcher Special Weapon Plasma Cutter Slashing Weapon Makeshift Axe Build | -11 -10 -9 -9 -8 -8 -7 -6 -6 -6 -6 -6 -5 ------- Run | Yrd Mat Mat Min Mat Sto Fac Fac Ext Cet Arc Hub Fac Slots Evolved 10 | . . 2 . 2 . 2 2 . . . . 2 Power 1 | . . . . . . 1 . . . . . . Propulsion 3 | . . . . 2 . . . . . . . 1 Utility 5 | . . 2 . . . 1 2 . . . . . Weapon 1 | . . . . . . . . . . . . 1 Parts Attached 241 | 6 . 23 8 21 21 61 30 20 8 8 8 27 Power 31 | 1 . 4 1 3 1 11 1 2 2 . 1 4 Engine 16 | 1 . 3 1 2 1 6 1 . . . . 1 Core 10 | . . 1 . 1 . 5 . 2 . . . 1 Reactor 5 | . . . . . . . . . 2 . 1 2 Propulsion 62 | 2 . 3 2 5 5 19 9 7 . . 1 9 Treads 5 | . . . . 4 1 . . . . . . . Leg 53 | 2 . 3 2 1 4 19 9 7 . . 1 5 Wheel . | . . . . . . . . . . . . . Hover 4 | . . . . . . . . . . . . 4 Flight . | . . . . . . . . . . . . . Utility 85 | 1 . 8 2 9 4 18 12 7 3 7 1 13 Device 46 | . . 4 1 3 1 10 8 5 . 7 1 6 Storage 9 | 1 . 2 . 2 . 1 . . . . . 3 Processor 8 | . . 1 . . 1 1 3 . 1 . . 1 Hackware 6 | . . . . 2 1 1 1 . . . . 1 Protection 16 | . . 1 1 2 1 5 . 2 2 . . 2 Artifact . | . . . . . . . . . . . . . Weapon 63 | 2 . 8 3 4 11 13 8 4 3 1 5 1 Energy Gun 29 | 2 . 7 1 1 5 9 2 1 . . 1 . Energy Cannon 14 | . . . 1 . 1 4 6 2 . . . . Ballistic Gun 13 | . . . . 3 4 . . . 2 1 3 . Ballistic Cannon 1 | . . . . . . . . . . . . 1 Launcher 4 | . . 1 . . 1 . . 1 . . 1 . Special Weapon 1 | . . . . . . . . . 1 . . . Impact Weapon . | . . . . . . . . . . . . . Slashing Weapon 1 | . . . 1 . . . . . . . . . Piercing Weapon . | . . . . . . . . . . . . . Special Melee Weapon . | . . . . . . . . . . . . . Unidentified Prototypes 20 | . . 1 . 1 5 5 2 . 2 . 2 2 Corrupted Parts 10 | . . . . . . 3 . . 2 1 4 . System Corruption 67 | . . . . . . 7 . . 16 10 34 . Parts Lost 86 | . . 6 8 1 5 21 5 5 . . . 35 Power 14 | . . 1 2 . . 4 . 1 . . . 6 Propulsion 22 | . . 1 3 . 3 6 . . . . . 9 Utility 25 | . . . . 1 1 6 4 2 . . . 11 Weapon 25 | . . 4 3 . 1 5 1 2 . . . 9 Highest Loss Streak 10 | . . 3 5 1 2 7 4 2 . . . 10 To Critical Strikes 1 | . . . . . . . . . . . . 1 Average Backups 16 | 1 2 8 9 14 23 14 18 18 18 19 19 16 Power . | . 1 1 . 1 1 . . . 1 1 1 . Propulsion 4 | . . 1 1 3 8 5 5 4 4 4 4 3 Utility 4 | . . 1 5 5 8 3 4 4 4 4 4 5 Weapon 5 | . 1 4 2 4 5 4 7 8 8 9 9 5 Tool/Special . | . . . . . . . . . . . . . Unused Backups 27 | . . 3 1 5 3 2 2 . 2 . 1 8 Power 5 | . . 1 . 1 1 . . . 1 . . 1 Propulsion 3 | . . . . . . . . . . . 1 2 Utility 11 | . . . 1 4 1 1 . . . . . 4 Weapon 8 | . . 2 . . 1 1 2 . 1 . . 1 Tool/Special . | . . . . . . . . . . . . . Average Slot Usage (%) 94 | . 85 95 95 97 95 95 96 99 99 92 99 74 Engine 5 | . 14 9 8 7 9 8 6 . . . . . Core 3 | . . 1 . 1 . 4 6 11 7 . . 1 Reactor 1 | . . . . . . . . . 5 13 13 6 Treads 7 | . . . . 32 28 . . . . . . . Leg 19 | . 28 21 20 1 3 29 26 26 26 26 26 22 Device 18 | . . 19 22 17 14 15 19 24 22 21 26 14 Storage 7 | . 14 11 11 9 9 7 6 6 6 6 6 5 Processor 4 | . . 6 . . . 6 10 7 6 6 6 1 Hackware 1 | . . . . 2 9 . 2 1 . . . . Protection 4 | . . 3 11 6 2 4 2 4 9 3 6 5 Energy Gun 8 | . 28 21 16 7 8 10 5 6 . . 2 . Energy Cannon 3 | . . . 2 2 . 4 7 5 . 1 8 . Ballistic Gun 3 | . . . . 7 8 . . . 5 11 . 9 Peak Build Rating 123 | 6 6 22 24 45 49 62 78 80 103 104 105 123 Average Rating 55 | 4 6 19 21 37 42 50 68 72 95 96 99 87 On Entrance 50 | . 6 6 22 23 44 44 47 78 80 103 99 105 Avg Prop Armor Cover (%) 9 | . . . . . 5 5 . . . . . 18 Naked Turns 12 | . . . . . . . . . . . . 12 Heaviest Build 117 | 14 14 27 29 99 100 78 87 87 111 113 113 117 Greatest Support 113 | 20 20 29 26 112 112 74 78 91 91 91 91 113 Greatest Overweight (x) 3 | . . 2 2 1 3 1 1 1 1 1 1 3 Average Overweight (x) . | . . . . . . . 1 . . 1 1 . Largest Inventory Capacity 25 | 8 8 10 10 25 25 20 20 20 20 20 20 20 Average Capacity 17 | 6 8 9 10 16 24 16 20 20 20 20 20 19 Most Carried 25 | 2 3 10 10 23 25 20 20 20 20 20 20 20 Average Carried 16 | 1 2 8 9 14 23 15 19 19 19 20 19 16 Final Capacity 25 | 8 8 10 10 25 15 20 20 20 20 20 20 5 Final Carried 22 | 2 3 10 10 22 15 20 20 20 20 20 20 5 Class Distribution -------------------- 56% | Mutant 24% | Scavenger-Mutant 13% | Commander-Mutant 4% | Scavenger-Tank Dominant Class ---------------- Mutant | -10/Materials Scavenger-Mutant | -9/Materials Scavenger-Mutant | -9/Mines Mutant | -8/Materials Mutant | -8/Storage Mutant | -7/Factory Mutant | -6/Factory Commander-Mutant | -6/Extension Commander-Mutant | -6/Cetus Commander-Mutant | -6/Archives Commander-Mutant | -6/Hub_04(d) Scavenger-Tank | -5/Factory Resources | -11 -10 -9 -9 -8 -8 -7 -6 -6 -6 -6 -6 -5 ----------- Run | Yrd Mat Mat Min Mat Sto Fac Fac Ext Cet Arc Hub Fac Matter Collected 6109 | 260 . 272 128 742 781 999 626 322 216 553 89 1121 Remotely . | . . . . . . . . . . . . . Salvage Created 13527 | . 132 903 116 1494 1346 3314 1574 1316 672 385 321 1954 Parts 679 | . 11 65 10 97 79 116 63 61 29 28 9 111 Haulers Intercepted 18 | . . 4 . 4 2 3 4 . . . 1 . Recyclers Shooed 7 | . . . . 1 . 1 3 . . . . 2 Parts Field Recycled . | . . . . . . . . . . . . . Retrieved Matter . | . . . . . . . . . . . . . Parts Self-Destructed . | . . . . . . . . . . . . . Prevented . | . . . . . . . . . . . . . Parts Restored . | . . . . . . . . . . . . . Kills | -11 -10 -9 -9 -8 -8 -7 -6 -6 -6 -6 -6 -5 ------- Run | Yrd Mat Mat Min Mat Sto Fac Fac Ext Cet Arc Hub Fac Combat Hostiles Destroyed 205 | . 5 17 9 21 23 56 21 17 8 . 1 27 Melee 1 | . . . 1 . . . . . . . . . Guns 106 | . 4 10 5 16 23 27 4 7 . . . 10 Cannons 38 | . . . . 3 . 16 8 6 . . . 5 AOE 37 | . 1 7 3 . . 7 7 1 1 . 1 9 Classes Destroyed 19 | . 2 8 2 3 . 2 . 1 . . . 1 Worker 16 | . . 2 . 6 . . 4 . . . 1 3 Builder 13 | . . 1 . . 2 . 2 . . . 3 5 Tunneler 3 | . . 2 . . . 1 . . . . . . Hauler 18 | . . 4 . 4 2 3 4 . . . 1 . Recycler 12 | . . . . 1 1 4 2 1 . . . 3 Mechanic 3 | . . . . 1 1 1 . . . . . . Operator 12 | . . 2 . 1 . . . . . 9 . . Watcher 13 | . . 1 . 4 1 4 . . 2 . . 1 Swarmer 33 | . 3 6 3 3 3 8 5 . . . . 2 Grunt 82 | . 2 6 . 11 9 28 6 8 . . . 12 Brawler 7 | . . 1 . . . 1 1 2 . . . 2 Duelist 1 | . . . . . . 1 . . . . . . Protector 1 | . . . . . . . . . . . . 1 Sentry 36 | . . 4 1 5 11 4 4 5 . . 1 1 Demolisher 1 | . . . 1 . . . . . . . . . Hunter 14 | . . . . 2 . 6 . . . . . 6 Programmer 16 | . . . . . . 8 5 . . . . 3 Behemoth 2 | . . . . . . . . 2 . . . . Cetus Guard 8 | . . . . . . . . . 8 . . . Assembled 4 | . . . 4 . . . . . . . . . Thug 1 | . . . . . . . . . . . 1 . Savage 1 | . . . . . . . . . . . . 1 Butcher 1 | . . . . . . . . . . 1 . . Best Kill Streak 9 | . 3 6 3 4 9 6 7 4 5 3 3 9 Combat Bots Only 8 | . 3 6 3 3 4 4 4 4 4 . 1 8 Max Kills in Single Turn 4 | . 1 3 1 2 2 4 3 1 2 1 4 3 Gunslinging 1 | . . 1 . . 1 . . . . . . 1 Exploded 4 | . 1 3 1 . . 4 3 1 1 . 1 2 Melee 1 | . . . 1 . . . . . . . . . Uniques/NPCs Destroyed . | . . . . . . . . . . . . . Combat | -11 -10 -9 -9 -8 -8 -7 -6 -6 -6 -6 -6 -5 -------- Run | Yrd Mat Mat Min Mat Sto Fac Fac Ext Cet Arc Hub Fac Hostile Shots Fired 1742 | . 12 65 71 101 129 555 139 194 18 6 9 443 Missed 529 | . 2 15 18 39 23 182 57 74 12 1 4 102 Hits 1213 | . 10 50 53 62 106 373 82 120 6 5 5 341 Melee 18 | . . . . . . 7 . 1 . . . 10 Projectile 1195 | . 10 50 53 62 106 366 82 119 6 5 5 331 AOE 4 | . . . 4 . . . . . . . . . Critical Strikes 65 | . 1 2 . 1 2 11 1 2 2 . . 43 Part Disruptions 3 | . . . . . . 3 . . . . . . Actively Blocked 2 | . . . . . . 2 . . . . . . Damage Taken 18213 | . 112 777 919 972 1592 5088 981 995 154 60 62 6501 Core 2494 | . 10 116 206 103 201 593 118 115 . 12 18 1002 Absorbed by Shields 1304 | . . . . . . 187 264 444 . 62 68 279 Redirected to Shielding 159 | . . . 83 60 . 16 . . . . . . Regen/Repaired (Parts) 1058 | . . 52 . 783 . 15 110 . . . . 98 Core Remaining (%) 57 | 100 96 . 19 . 44 15 . . . . 69 . Volleys Fired 792 | . 12 58 19 103 93 239 63 56 20 37 5 87 Largest 3 | . 2 2 2 2 2 2 2 2 1 2 2 3 Hottest 170 | . 80 126 126 118 122 141 165 165 43 130 150 170 Shots Fired 1488 | . 24 108 31 206 178 442 114 115 20 68 10 172 Gun 1144 | . 24 104 28 174 175 326 52 68 8 65 3 117 Cannon 302 | . . . . 32 . 113 57 46 . 3 7 44 Launcher 42 | . . 4 3 . 3 3 5 1 12 . . 11 Special . | . . . . . . . . . . . . . Kinetic 426 | . . . . 102 119 . . . 8 63 . 134 Thermal 639 | . . 63 26 32 40 348 82 48 . . . . Explosive 24 | . . 4 3 . 3 3 5 1 . . . 5 Electromagnetic 399 | . 24 41 2 72 16 91 27 66 12 5 10 33 Robot Hit Streak 30 | . 3 9 3 21 30 19 15 11 4 4 7 12 Robot Miss Streak 7 | . 3 4 3 4 4 6 3 3 1 4 . 7 Penetration Max 1 | . . . . . . . . . . 1 . 1 Secondary Targets 15 | . . 3 . 2 6 1 . 1 . . . 2 Max Gunslinging Chain 1 | . . 1 . 1 1 1 . 1 . . . 1 Shots Hit Robots 940 | . 14 60 20 126 125 291 78 81 5 36 6 98 Core Hits 498 | . 7 39 13 57 49 114 63 40 19 21 10 66 Critical Kills 12 | . . . . 1 . . . . . 3 . 8 Critical Parts Destroyed 7 | . . . . . . . . . . 3 . 4 Critical Strikes 48 | . . . 3 2 . 16 . 2 . 6 . 19 Burn 15 | . . . . . . 15 . . . . . . Meltdown 1 | . . . . 1 . . . . . . . . Destroy 19 | . . . . . . . . . . 6 . 13 Blast 6 | . . . . . . . . . . . . 6 Corrupt 4 | . . . . 1 . 1 . 2 . . . . Sever 3 | . . . 3 . . . . . . . . . Melee Attacks 13 | . . . 13 . . . . . . . . . Impact . | . . . . . . . . . . . . . Slashing 13 | . . . 13 . . . . . . . . . Piercing . | . . . . . . . . . . . . . Sneak Attacks . | . . . . . . . . . . . . . Combat Hostiles . | . . . . . . . . . . . . . Follow-up Attacks . | . . . . . . . . . . . . . Damage Inflicted 28155 | . 207 1601 729 2631 2391 7308 3406 2074 1223 1131 1095 4359 Guns 15883 | . 171 1058 201 2021 2347 4810 948 968 105 1047 22 2185 Cannons 5591 | . . . . 436 . 1825 1397 996 . 84 165 688 Explosions 6157 | . 36 514 193 121 . 635 1058 110 1118 . 892 1480 Melee 335 | . . . 335 . . . . . . . . . Ramming 189 | . . 29 . 53 44 38 3 . . . 16 6 Kinetic 6205 | . . . . 1110 1567 . . . 105 1004 . 2419 Thermal 11108 | . 36 828 187 557 595 5390 1925 1075 285 . 116 114 Explosive 2911 | . . 346 193 . . 535 1058 . . . . 779 Electromagnetic 7407 | . 171 398 14 911 185 1345 420 999 833 127 963 1041 Impact . | . . . . . . . . . . . . . Slashing 335 | . . . 335 . . . . . . . . . Piercing . | . . . . . . . . . . . . . Highest Corruption 32 | . . . . . . 7 11 5 21 21 32 23 Average Corruption 5 | . . . . . . 1 6 4 8 10 29 6 Corruption Purged 41 | . . . . . . 7 . . . 33 . 1 Corruption Blocked 8 | . . . . . . . . . 8 . . . Effects 161 | . . . . . . 25 29 48 10 29 1 19 Message Errors 31 | . . . . . . 4 4 11 2 5 . 5 Matter Fused 36 | . . . . . . 6 5 12 3 6 . 4 Heat Flow Errors 24 | . . . . . . 4 6 5 2 2 1 4 Energy Discharges 15 | . . . . . . 1 5 5 3 . . 1 Parts Rejected 2 | . . . . . . . 1 1 . . . . Parts Fused 4 | . . . . . . 1 1 1 . 1 . . Data Loss (minor) 20 | . . . . . . 2 4 8 . 3 . 3 Data Loss (major) 7 | . . . . . . 2 2 1 . 1 . 1 Misfires 8 | . . . . . . 2 . 4 . 2 . . Alerts 3 | . . . . . . 1 . . . 1 . 1 Weapon Failures 11 | . . . . . . 2 1 . . 8 . . Overload Shots . | . . . . . . . . . . . . . Overflow Damage 326 | . . 6 30 11 . 27 130 2 . . 22 98 Projectiles 130 | . . . . 11 . 27 87 2 . . . 3 Explosions 181 | . . 6 16 . . . 43 . . . 21 95 Melee 15 | . . . 14 . . . . . . . 1 . Knockbacks 4 | . . . . 1 . . . . . . . 3 Impact 1 | . . . . 1 . . . . . . . . Kinetic 3 | . . . . . . . . . . . . 3 Secondary . | . . . . . . . . . . . . . Self-Inflicted Damage 485 | . 22 68 75 46 73 24 23 33 . . 100 21 Shots 15 | . 1 3 3 1 2 1 1 1 . . 1 1 Rammed 8 | . . . . 5 3 . . . . . . . Targets Rammed 25 | . . 5 . 7 4 6 1 . . . 1 1 Kicked 14 | . . 5 . . . 6 1 . . . 1 1 Crushed 3 | . . . . 2 1 . . . . . . . Highest Temperature 437 | . 144 111 96 197 170 437 352 197 113 129 51 332 Average Temperature 98 | . 53 26 28 59 43 141 100 106 61 58 51 143 Received Heat Transfer 3970 | . 18 171 144 405 639 1648 143 271 . 12 3 516 Effects 12 | . . . . . . 11 1 . . . . . Shutdowns 4 | . . . . . . 4 . . . . . . Energy Bleed 1 | . . . . . . . 1 . . . . . Interference 5 | . . . . . . 5 . . . . . . Short Circuit 1 | . . . . . . 1 . . . . . . Damage (major) 1 | . . . . . . 1 . . . . . . Siege Activations . | . . . . . . . . . . . . . Martial Activations . | . . . . . . . . . . . . . Shielding Activations . | . . . . . . . . . . . . . Robots Disrupted . | . . . . . . . . . . . . . Combat Hostiles . | . . . . . . . . . . . . . Robots Corrupted 22 | . . . . 1 . 1 3 3 7 . 2 5 Combat Hostiles 17 | . . . . 1 . 1 2 3 7 . . 3 Parts Fried 47 | . 1 1 . 3 . 4 10 6 7 . 8 7 Impact Corruptions 1 | . . . . . . . . . . . 1 . Robots Melted 7 | . . . . 1 . 5 1 . . . . . Combat Hostiles 6 | . . . . 1 . 5 . . . . . . Parts Melted 59 | . . 3 2 2 3 34 11 4 . . . . Heat Transferred 20065 | . 50 1743 370 853 1184 10847 2934 1784 150 . 50 100 Parts Sabotaged . | . . . . . . . . . . . . . Parts Stolen . | . . . . . . . . . . . . . Parts Stripped . | . . . . . . . . . . . . . Power Chain Reactions 15 | . 1 4 . 2 . 2 . 1 2 . 1 2 Alert | -11 -10 -9 -9 -8 -8 -7 -6 -6 -6 -6 -6 -5 ------- Run | Yrd Mat Mat Min Mat Sto Fac Fac Ext Cet Arc Hub Fac Maximum Alert Level 4 | . . 1 . 1 1 3 2 3 1 1 2 4 Low Security (%) 42 | 100 100 57 100 53 75 44 29 9 32 53 31 . Level 1 36 | . . 42 . 46 24 13 68 41 67 46 24 31 Level 2 10 | . . . . . . 24 1 40 . . 44 5 Level 3 6 | . . . . . . 17 . 7 . . . 32 Level 4 2 | . . . . . . . . . . . . 30 Level 5 . | . . . . . . . . . . . . . High Security . | . . . . . . . . . . . . . Max Security . | . . . . . . . . . . . . . Peak Influence 1208 | . 103 268 65 317 280 856 413 728 323 282 635 1208 Initial 413 | . . 35 31 . 108 11 413 157 141 94 14 305 Average 281 | . 50 178 13 160 128 350 237 398 231 175 321 774 Influence Increases 9873 | . 171 637 167 765 828 1714 829 1427 349 334 781 1871 Destroy 0b10 Robot/C 5020 | . 100 340 100 420 460 1120 460 760 160 80 220 800 Destroy 0b10 Robot/NC 485 | . . 55 . 85 35 65 60 20 10 45 40 70 Destroy Leader 1148 | . 20 100 20 126 146 294 138 86 . . 46 172 Allied During Kill 1213 | . . . . . . . 8 315 129 122 306 333 Successful Hack 349 | . 18 13 . 46 39 69 84 40 . . 14 26 Select Force Hacks 30 | . 30 . . . . . . . . . . . Disable Machine 690 | . . 45 15 45 105 90 45 60 30 75 60 120 Destroy Structure 623 | . 3 39 17 13 43 46 34 71 20 12 95 230 Partial Spotted 15 | . . . . . . 15 . . . . . . Lose Combat Pursuer 300 | . . 45 15 30 . 15 . 75 . . . 120 Influence Decreases 8665 | . 86 640 249 508 1059 896 1351 1495 367 528 198 1288 Entered New Map 1464 | . . 50 51 . 149 15 431 165 113 142 28 320 Time Decay 5052 | . 86 530 149 508 550 671 660 610 214 386 170 518 Lost Part 819 | . . 60 49 . 50 210 50 50 . . . 350 Lost Ally 430 | . . . . . 10 . 60 220 40 . . 100 Purge Threat 900 | . . . . . 300 . 150 450 . . . . Squads Dispatched 55 | . 1 2 . 1 1 19 8 2 . . 5 16 Investigation 17 | . 1 1 . 1 . 9 2 1 . . . 2 Extermination 14 | . . . . . . 7 5 . . . . 2 Reinforcement 12 | . . 1 . . 1 2 1 . . . 2 5 Assault 7 | . . . . . . 1 . 1 . . 2 3 Garrison 5 | . . . . . . . . . . . 1 4 Intercept . | . . . . . . . . . . . . . Searches Triggered . | . . . . . . . . . . . . . Unchained Authorized 2 | . . . . . . . . . . . 1 1 Construction Impeded 6 | . . . . . 1 1 . . . . 1 3 Haulers Reinforced 2 | . . . . . . . . . . . 1 1 Active Scanning Responses . | . . . . . . . . . . . . . Cargo Convoy Interrupts . | . . . . . . . . . . . . . Stealth | -11 -10 -9 -9 -8 -8 -7 -6 -6 -6 -6 -6 -5 --------- Run | Yrd Mat Mat Min Mat Sto Fac Fac Ext Cet Arc Hub Fac Distress Signals 18 | . 1 2 . 3 2 . 3 1 2 . 2 2 Communications Jammed . | . . . . . . . . . . . . . Distress Signals . | . . . . . . . . . . . . . Times Spotted 380 | . 6 30 16 40 27 77 37 41 8 24 7 67 Peak Tracking Total 13 | . 3 6 11 4 4 4 5 5 5 1 3 13 Tactical Retreats 14 | . . 2 2 1 . 1 . 4 . . . 4 Traps | -11 -10 -9 -9 -8 -8 -7 -6 -6 -6 -6 -6 -5 ------- Run | Yrd Mat Mat Min Mat Sto Fac Fac Ext Cet Arc Hub Fac Traps Triggered 8 | . . 2 . . . 4 . 1 . . . 1 Indirectly . | . . . . . . . . . . . . . Trap Hack Attempts . | . . . . . . . . . . . . . Triggered . | . . . . . . . . . . . . . Disarmed 3 | . . . . 3 . . . . . . . . Reprogrammed . | . . . . . . . . . . . . . Reused . | . . . . . . . . . . . . . Traps Extracted . | . . . . . . . . . . . . . Installed . | . . . . . . . . . . . . . Triggered . | . . . . . . . . . . . . . Machines | -11 -10 -9 -9 -8 -8 -7 -6 -6 -6 -6 -6 -5 ---------- Run | Yrd Mat Mat Min Mat Sto Fac Fac Ext Cet Arc Hub Fac Machines Disabled 46 | . . 3 1 3 7 6 3 4 2 5 4 8 Max in Single Turn 4 | . . 1 1 1 3 1 1 . 1 2 4 2 Garrison Access 3 | . . . . 1 1 . 1 . . . . . Network Hub 1 | . . . . . . . . . . . 1 . Energy Cycler 4 | . . . . . . . . 4 . . . . Machines Repaired . | . . . . . . . . . . . . . Machines Dismantled 1 | . . . . . . . . . 1 . . . Machines Sabotaged . | . . . . . . . . . . . . . Overloaded Fab Kills . | . . . . . . . . . . . . . Hacking | -11 -10 -9 -9 -8 -8 -7 -6 -6 -6 -6 -6 -5 --------- Run | Yrd Mat Mat Min Mat Sto Fac Fac Ext Cet Arc Hub Fac Machines Accessed 86 | . 4 6 . 12 15 20 14 7 . . 3 5 Terminals 55 | . 3 4 . 8 14 9 5 7 . . 2 3 Fabricators 8 | . . . . . . 4 3 . . . . 1 Repair Stations 8 | . . 1 . 1 . 3 2 . . . . 1 Recycling Units 3 | . 1 . . 1 . 1 . . . . . . Scanalyzers 6 | . . 1 . 1 . 2 2 . . . . . Garrison Access 6 | . . . . 1 1 1 2 . . . 1 . Total Hacks 312 | . 11 24 . 75 53 65 37 26 . . 5 16 Successful 184 | . 6 15 . 65 32 28 17 11 . . 1 9 Failed 124 | . 4 8 . 9 20 37 20 15 . . 4 7 Catastrophic 22 | . . . . 1 1 7 3 6 . . 1 3 Database Lockouts 4 | . 1 1 . 1 1 . . . . . . . Manual 116 | . 9 13 . 10 19 29 11 13 1 . 4 7 Terminals 182 | . 10 15 . 27 50 30 13 26 . . 3 8 Fabricators 32 | . . . . . . 15 12 . . . . 5 Repair Stations 52 | . . 4 . 32 . 10 3 . . . . 3 Recycling Units 7 | . 1 . . 2 . 4 . . . . . . Scanalyzers 29 | . . 5 . 13 . 5 6 . . . . . Garrison Access 10 | . . . . 1 3 1 3 . . . 2 . Terminal Hacks 65 | . 3 3 . 18 23 5 3 8 . . . 2 Part Schematic 7 | . . . . . 5 2 . . . . . . Robot Schematic 1 | . . . . . 1 . . . . . . . Robot Analysis 6 | . 1 2 . 3 . . . . . . . . Prototype ID Bank 9 | . 2 . . 2 3 . . 2 . . . . Open Door 6 | . . . . . 5 . 1 . . . . . Level Access Points 1 | . . . . . . . . . . . . 1 Branch Access Points 2 | . . . . 1 . 1 . . . . . . Terminal Index 2 | . . 1 . . 1 . . . . . . . Recycling Unit Index 1 | . . . . . 1 . . . . . . . Alert Level 3 | . . . . 1 . . 1 1 . . . . Unreport Threat 6 | . . . . . 2 . 1 3 . . . . Locate Traps 9 | . . . . 4 2 2 . 1 . . . . Disarm Traps 1 | . . . . 1 . . . . . . . . Dispatch Records 1 | . . . . 1 . . . . . . . . Maintenance Status 1 | . . . . 1 . . . . . . . . Hauler Manifests 1 | . . . . . 1 . . . . . . . Registered Components 1 | . . . . 1 . . . . . . . . Zone Layout 7 | . . . . 3 2 . . 1 . . . 1 Fabricator Hacks 16 | . . . . . . 9 5 . . . . 2 Network Status 3 | . . . . . . 1 1 . . . . 1 Load Schematic 6 | . . . . . . 3 2 . . . . 1 Build 7 | . . . . . . 5 2 . . . . . Repair Station Hacks 40 | . . 4 . 30 . 2 2 . . . . 2 Scan Component 21 | . . 2 . 15 . 2 1 . . . . 1 Repair 19 | . . 2 . 15 . . 1 . . . . 1 Recycling Unit Hacks 4 | . . . . 1 . 3 . . . . . . Process 1 | . . . . . . 1 . . . . . . Report Inventory 1 | . . . . . . 1 . . . . . . Retrieve Matter 1 | . . . . . . 1 . . . . . . Retrieve Components 1 | . . . . 1 . . . . . . . . Scanalyzer 21 | . . 5 . 13 . 2 1 . . . . . Insert Component 10 | . . 2 . 6 . 1 1 . . . . . Analyze 10 | . . 2 . 7 . 1 . . . . . . Retrieve Study 1 | . . 1 . . . . . . . . . . Garrison Access Hacks 3 | . . . . 1 1 . 1 . . . . . Seal Access 3 | . . . . 1 1 . 1 . . . . . Unauthorized Hacks 35 | . 3 3 . 2 8 7 5 3 . . 1 3 Terminals 27 | . 2 3 . 2 8 3 3 3 . . 1 2 Track 1 | . . . . . . . . . . . . 1 Assimilate 4 | . . 1 . . 3 . . . . . . . Botnet 19 | . 2 1 . 2 3 3 3 3 . . 1 1 Disrupt 1 | . . . . . 1 . . . . . . . Operators 2 | . . 1 . . 1 . . . . . . . Fabricators 6 | . . . . . . 3 2 . . . . 1 Prioritize 3 | . . . . . . 2 1 . . . . . Fabnet 2 | . . . . . . 1 1 . . . . . Recompile 1 | . . . . . . . . . . . . 1 Repair Stations 1 | . . . . . . 1 . . . . . . Patch 1 | . . . . . . 1 . . . . . . Recycling Units 1 | . 1 . . . . . . . . . . . Tunnel 1 | . 1 . . . . . . . . . . . Scanalyzers . | . . . . . . . . . . . . . Garrison Access . | . . . . . . . . . . . . . Data Cores Recovered 2 | . . . . 1 . . . . . . 1 . Used . | . . . . . . . . . . . . . Hacking Detections 71 | . 1 6 . 9 10 20 12 6 . . 3 4 Full Trace Events 13 | . 1 . . . . 8 2 1 . . . 1 Feedback Events 1 | . . . . . . . . 1 . . . . Corruption 1 | . . . . . . . . 1 . . . . Feedback Blocked . | . . . . . . . . . . . . . Robot Schematics Acquired 1 | . . . . . 1 . . . . . . . Robots Built 3 | . . . . . . . 3 . . . . . Authchips . | . . . . . . . . . . . . . Time 49 | . . . . . . . 49 . . . . . Total Robot Build Rating 6 | . . . . . . . 6 . . . . . Part Schematics Acquired 16 | . . 2 . 6 5 3 . . . . . . Parts Built 8 | . . . . . . 8 . . . . . . Authchips . | . . . . . . . . . . . . . Time 346 | . . . . . . 310 36 . . . . . Total Part Build Rating 35 | . . . . . . 35 . . . . . . Part Studies Acquired 1 | . . 1 . . . . . . . . . . Parts Repaired 19 | . . 2 . 15 . . 1 . . . . 1 Time 775 | . . 70 . 629 . . 14 . . . . 62 Parts Recycled . | . . . . . . . . . . . . . Recycled Matter 8 | . . . . . . 8 . . . . . . Retrieved Matter 8 | . . . . . . 8 . . . . . . Retrieved Components 9 | . . . . 9 . . . . . . . . Parts Scanalyzed 10 | . . 2 . 6 . 1 1 . . . . . Part Schematics Acquired 9 | . . 2 . 6 . 1 . . . . . . Parts Damaged 2 | . . . . 2 . . . . . . . . Bothacking | -11 -10 -9 -9 -8 -8 -7 -6 -6 -6 -6 -6 -5 ------------ Run | Yrd Mat Mat Min Mat Sto Fac Fac Ext Cet Arc Hub Fac Used RIF Installer . | . . . . . . . . . . . . . Robots Hacked 3 | . . . . . . . 1 1 . . 1 . Non-combat . | . . . . . . . . . . . . . Combat 3 | . . . . . . . 1 1 . . 1 . Robot Hacks Applied . | . . . . . . . . . . . . . Relay Couplers Released . | . . . . . . . . . . . . . Fabnet Peak Effective % 3 | . . . . . . . 3 3 3 3 3 1 Autooverrided 3 | . . . . . . . 1 1 . . 1 . Robots Rewired 20 | . . . . . . . . 20 . . . . Allies Hacked . | . . . . . . . . . . . . . Hacks Repelled . | . . . . . . . . . . . . . Allies | -11 -10 -9 -9 -8 -8 -7 -6 -6 -6 -6 -6 -5 -------- Run | Yrd Mat Mat Min Mat Sto Fac Fac Ext Cet Arc Hub Fac Total Allies 34 | . . 1 . . 1 . 4 22 5 . 1 . Largest Group 11 | . . 1 . . 1 . 3 11 10 10 9 7 Highest-Rated Group 705 | . . 10 . . 10 . 30 431 705 705 584 521 Highest-Rated Ally 159 | . . 10 . . 10 . 20 159 131 125 96 96 Total Orders 5 | . . . . . . . 4 . . 1 . . STAY 1 | . . . . . . . . . . 1 . . EXPLORE 3 | . . . . . . . 3 . . . . . RETURN 1 | . . . . . . . 1 . . . . . Ally Attacks 294 | . . . . . . . 8 155 11 14 32 74 Total Damage 9485 | . . . . . . . 174 4430 320 494 1186 2881 Kills 62 | . . . . . . . 2 26 1 4 13 16 Allies Corrupted 2 | . . . . . . . . 1 . . . 1 Allies Melted 1 | . . . . . . . 1 . . . . . Intel | -11 -10 -9 -9 -8 -8 -7 -6 -6 -6 -6 -6 -5 ------- Run | Yrd Mat Mat Min Mat Sto Fac Fac Ext Cet Arc Hub Fac Active Infowar (turns) 5489 | . . 1363 278 . . 1556 2226 66 . . . . Sensors 3140 | . . . . . . 957 2117 66 . . . . Terrain 1641 | . . 1363 278 . . . . . . . . . Machine Analysis 834 | . . . . . . 599 235 . . . . . Robot Analysis Total 6 | . 1 2 . 3 . . . . . . . . Derelict Logs Recovered . | . . . . . . . . . . . . . Drone Launches 3 | . . . . . . . 3 . . . . . Drone Recoveries 1 | . . . . . . . 1 . . . . . Exploration | -11 -10 -9 -9 -8 -8 -7 -6 -6 -6 -6 -6 -5 ------------- Run | Yrd Mat Mat Min Mat Sto Fac Fac Ext Cet Arc Hub Fac Turns Passed 18096 | 76 192 1483 603 2943 1591 3577 2482 1991 459 909 355 1435 Spaces Moved 8282 | 57 123 708 308 1254 677 1735 1094 864 209 375 166 712 Core 26 | 4 . . . . . . . . . . . 22 Treads 1768 | . . . . 1104 664 . . . . . . . Legs 6403 | 53 123 708 308 150 13 1735 1094 864 209 375 166 605 Wheels . | . . . . . . . . . . . . . Hover 85 | . . . . . . . . . . . . 85 Flight . | . . . . . . . . . . . . . Fastest Speed 36 | 50 120 105 105 120 122 115 178 120 120 190 190 36 Average Speed 162 | 115 120 164 159 157 185 138 185 175 176 190 190 143 Slowest Speed 400 | 120 120 245 245 240 400 195 190 190 190 190 190 340 Overloaded Moves . | . . . . . . . . . . . . . Propulsion Burnouts . | . . . . . . . . . . . . . Robots Hopped . | . . . . . . . . . . . . . Potential Cave-ins . | . . . . . . . . . . . . . Cave-ins Triggered 1 | . . . . . . . 1 . . . . . Exploration Rate (%) 51 | 4 28 41 60 76 89 47 31 87 64 95 22 19 Regions Visited 12 Branch Regions 6 Pre-discovered Areas 1 | . 1 . . . . . . . . . . . Known Exits Taken 5 | . . . . 1 1 1 1 . . . 1 . Unknown Exits Taken 7 | 1 1 1 1 . . . . 1 1 1 . . Scrap Searched 2 | . . . 2 . . . . . . . . . Spaces Dug 63 | . . 7 27 . 26 . 1 . . . . 2 Terrain Destroyed 546 | . 2 38 35 14 40 39 34 36 25 18 174 91 Melee . | . . . . . . . . . . . . . Projectile 75 | . . . . 2 . . 7 8 3 17 . 38 AOE 470 | . 2 38 35 12 40 39 27 28 22 . 174 53 Terrain Rammed . | . . . . . . . . . . . . . Walls Destroyed . | . . . . . . . . . . . . . Machines Disabled . | . . . . . . . . . . . . . Actions | -11 -10 -9 -9 -8 -8 -7 -6 -6 -6 -6 -6 -5 --------- Run | Yrd Mat Mat Min Mat Sto Fac Fac Ext Cet Arc Hub Fac Total 11422 | 64 143 918 373 2048 871 2455 1421 1223 264 493 194 955 Wait 1335 | . 8 88 12 605 25 285 157 48 . 56 5 46 Move 8270 | 56 122 707 307 1253 676 1734 1093 863 208 374 165 712 Hop . | . . . . . . . . . . . . . Pick Up 147 | 2 1 18 8 23 14 31 21 3 7 . 1 18 Fast Attach 159 | 6 . 8 2 22 10 31 13 11 3 10 5 38 Attach 88 | . . 8 7 2 10 21 13 2 1 . . 24 Detach 8 | . . . . 2 . 2 1 . . . . 3 Swap 158 | . . 11 3 12 11 50 27 14 7 9 5 9 Drop 200 | . . 15 2 19 28 46 32 17 10 7 7 17 Fire 792 | . 12 58 19 103 93 239 63 56 20 37 5 87 Melee 13 | . . . 13 . . . . . . . . . Ram . | . . . . . . . . . . . . . Kick 14 | . . 5 . . . 6 1 . . . 1 1 Crush 11 | . . . . 7 4 . . . . . . . Escape Stasis 15 | . . . . . . 10 . 5 . . . . Rewire 204 | . . . . . . . . 204 . . . . Trap . | . . . . . . . . . . . . . Miscellaneous 8 | . . . . . . . . . 8 . . . Route ------- -11/Scrapyard -10/Materials -9/Materials (discovered 2 exits: *Mat / [*Min]) -9/Mines -8/Materials (discovered 3 exits: *Fac x2 / *Sto) -8/Storage (discovered 2 exits: *Fac / [Rec]) -7/Factory (discovered 3 exits: *Fac / Low x2) -6/Factory (discovered 2 exits: *Fac / *Ext) -6/Extension (discovered 3 exits: *Fac x2 / *Cet) -6/Cetus (discovered 2 exits: *Fac / [*Arc]) -6/Archives (discovered 3 exits: *Fac / *Hub x2) -6/Hub_04(d) (discovered 2 exits: *Fac x2) -5/Factory (discovered 4 exits: Fac x4) History --------- Turn | Location | Event 3 | -11/Scrapyard | Discovered new exit (range 16) 77 | -11/Scrapyard | Entered Materials 82 | -10/Materials | Central database locked down 217 | -10/Materials | Discovered new exit (range 15) 269 | -10/Materials | Entered another Materials area 269 | -9/Materials | Evolved 2 slots: Utility x2 306 | -9/Materials | Build established: Mutant 592 | -9/Materials | Discovered new exit (range 7) 830 | -9/Materials | Build established: Scavenger-Mutant 956 | -9/Materials | Lost 3 parts (1p1n1w) 1013 | -9/Materials | Discovered new exit (range 13) 1201 | -9/Materials | Central database locked down 1513 | -9/Materials | Repaired Imp. Terrain Scanner 1546 | -9/Materials | Repaired Imp. Ion Engine 1752 | -9/Materials | Entered Mines 1753 | -9/Mines | Assembled infested the area 1858 | -9/Mines | Found a damaged Exp. Sensor Array with a note attached 1862 | -9/Mines | Found Prototype Device 1885 | -9/Mines | Core integrity fell below 50% 2000 | -9/Mines | Discovered new exit (range 11) 2050 | -9/Mines | A Derelict revealed a hidden shortcut to a safe place 2205 | -9/Mines | Core integrity fell below 20% 2244 | -9/Mines | Lost 5 parts (1p2n2w) 2355 | -9/Mines | Entered Materials 2355 | -8/Materials | Evolved 2 slots: Propulsion x2 2455 | -8/Materials | Central database locked down 2672 | -8/Materials | Build established: Mutant 2937 | -8/Materials | Discovered new exit (range 12) 3045 | -8/Materials | Identified exit to Storage 3744 | -8/Materials | Discovered new exit (range 15) 4493 | -8/Materials | Repaired Med. Treads? 4576 | -8/Materials | Repaired Med. Treads 4622 | -8/Materials | Repaired Med. Treads 4683 | -8/Materials | Repaired Enh. Autogun 4729 | -8/Materials | Repaired Med. Treads 4768 | -8/Materials | Repaired Imp. Utility Shielding 4807 | -8/Materials | Repaired Shock Rifle 4846 | -8/Materials | Repaired Imp. Utility Shielding 4879 | -8/Materials | Repaired Disposable Heat Sink 4913 | -8/Materials | Repaired Rocket Launcher 4965 | -8/Materials | Repaired Hvy. Ion Engine 5010 | -8/Materials | Repaired Med. Treads 5056 | -8/Materials | Repaired Med. Treads 5107 | -8/Materials | Repaired Adv. Heat Sink 5135 | -8/Materials | Repaired Lrg. Storage Unit 5186 | -8/Materials | Identified Exp. Sensor Array 5298 | -8/Materials | Entered Storage 5886 | -8/Storage | Discovered new exit (range 8) 6026 | -8/Storage | Core integrity fell below 50% 6056 | -8/Storage | Central database locked down 6189 | -8/Storage | Discovered new exit (range 16) 6212 | -8/Storage | Found Prototype Launcher 6212 | -8/Storage | Identified Gui. Missile Launcher 6888 | -8/Storage | Identified exit to Factory 6889 | -8/Storage | Entered Factory 6889 | -7/Factory | Evolved 2 slots: Power x1, Utility x1 7888 | -7/Factory | Fabricated Imp. Dynamic Insulation System? 7936 | -7/Factory | Lost 7 parts (1p4n1u1w) 7999 | -7/Factory | Fabricated Imp. Carbon-fiber Leg? 8043 | -7/Factory | Lost 3 parts (1p1u1w) 8528 | -7/Factory | Discovered new exit (range 12) 8541 | -7/Factory | Identified exit to Factory 8663 | -7/Factory | Fabricated Imp. Carbon-fiber Leg? 9014 | -7/Factory | Core integrity fell below 50% 9289 | -7/Factory | First assault squad dispatched 9437 | -7/Factory | Fabricated Mni. Drone Bay (x1) 9466 | -7/Factory | Fabricated Hcp. Storage Unit (x1) 9732 | -7/Factory | Identified exit to Lower Caves 9852 | -7/Factory | Lost 5 parts (1p2n2u) 10010 | -7/Factory | Core integrity fell below 20% 10150 | -7/Factory | Build established: Scavenger-Mutant 10466 | -7/Factory | Entered another Factory area 10466 | -6/Factory | Evolved 2 slots: Utility x2 10959 | -6/Factory | Repaired Imp. Carbon-fiber Leg 11187 | -6/Factory | Discovered new exit (range 26) 11241 | -6/Factory | Identified exit to Factory 11655 | -6/Factory | Crushed by falling debris 11655 | -6/Factory | System corruption reached 10% 11687 | -6/Factory | Build established: Mutant 11689 | -6/Factory | Lost 4 parts (4u) 12277 | -6/Factory | Fabricated B-36 Bruiser? 12942 | -6/Factory | Discovered new exit (range 5) 12946 | -6/Factory | Identified exit to Extension 12948 | -6/Factory | Entered Extension 13202 | -6/Extension | Energy Cycler disabled 13202 | -6/Extension | Rescued a captive Derelict 13202 | -6/Extension | Rescued a captive Derelict 13202 | -6/Extension | Rescued a captive Derelict 13202 | -6/Extension | Rescued a captive Derelict 13205 | -6/Extension | Rescued a captive Derelict 13208 | -6/Extension | Rescued A7 13600 | -6/Extension | Build established: Scavenger-Mutant 14135 | -6/Extension | Spotted B-75 Beast 14151 | -6/Extension | Destroyed B-75 Beast 14162 | -6/Extension | Spotted B-75 Beast 14164 | -6/Extension | Discovered exit to Factory (range 15) 14180 | -6/Extension | Destroyed B-75 Beast 14232 | -6/Extension | Build established: Commander-Mutant 14698 | -6/Extension | First assault squad dispatched 14786 | -6/Extension | Lost 9 allies 14901 | -6/Extension | Discovered exit to Factory (range 10) 14902 | -6/Extension | Discovered new exit (range 6) 14939 | -6/Extension | Entered Cetus 14939 | -6/Cetus | Accompanied by 8 allies (A7) 14944 | -6/Cetus | Acquired a Cetus Manufacturing Module code from A7 14955 | -6/Cetus | Spotted Cetus Guard 14955 | -6/Cetus | Spotted Cetus Guard 14958 | -6/Cetus | Spotted Cetus Guard 14961 | -6/Cetus | Spotted Cetus Guard 14964 | -6/Cetus | Destroyed Cetus Guard 14965 | -6/Cetus | Destroyed Cetus Guard 14966 | -6/Cetus | Destroyed Cetus Guard 14967 | -6/Cetus | Destroyed Cetus Guard 14996 | -6/Cetus | Lost 3 allies 15064 | -6/Cetus | Started Cetus Manufacturing Module 15089 | -6/Cetus | Manufactured an Enhanced Grunt 15101 | -6/Cetus | Escorted A7 to Cetus Mainframe 15114 | -6/Cetus | Manufactured an Enhanced Grunt 15117 | -6/Cetus | Discovered new exit (range 15) 15139 | -6/Cetus | Manufactured an Enhanced Grunt 15152 | -6/Cetus | Spotted Cetus Guard 15152 | -6/Cetus | Spotted Cetus Guard 15159 | -6/Cetus | Destroyed Cetus Guard 15159 | -6/Cetus | Destroyed Cetus Guard 15159 | -6/Cetus | Spotted Cetus Guard 15159 | -6/Cetus | Spotted Cetus Guard 15164 | -6/Cetus | Manufactured an Enhanced Grunt 15165 | -6/Cetus | Destroyed Cetus Guard 15166 | -6/Cetus | Destroyed Cetus Guard 15178 | -6/Cetus | Discovered exit to Factory (range 16) 15187 | -6/Cetus | Met Revision 17 15189 | -6/Cetus | Manufactured an Enhanced Grunt 15335 | -6/Cetus | Cetus Manufacturing Module disabled 15398 | -6/Cetus | Entered Archives 15398 | -6/Archives | Accompanied by 10 allies (A7) 15403 | -6/Archives | Received a hacking code to weaken MAIN.C 15467 | -6/Archives | Discovered new exit (range 16) 15691 | -6/Archives | Discovered exit to Factory (range 16) 15740 | -6/Archives | Discovered new exit (range 15) 16307 | -6/Archives | Entered Hub_04(d) 16307 | -6/Hub_04(d) | Accompanied by 8 allies 16310 | -6/Hub_04(d) | Garrison activated, responded to threat 16442 | -6/Hub_04(d) | Discovered exit to Factory (range 15) 16615 | -6/Hub_04(d) | Discovered exit to Factory (range 7) 16638 | -6/Hub_04(d) | Unchained authorized (6S-H0T) 16641 | -6/Hub_04(d) | Network Hub disabled 16650 | -6/Hub_04(d) | System corruption reached 30% 16657 | -6/Hub_04(d) | First assault squad dispatched 16662 | -6/Hub_04(d) | Entered Factory 16662 | -5/Factory | Accompanied by 7 allies 16662 | -5/Factory | Evolved 2 slots: Propulsion x1, Weapon x1 16845 | -5/Factory | Unchained authorized (6S-H0T) 16904 | -5/Factory | Repaired Myomer Leg 16944 | -5/Factory | Build established: Scavenger-Tank 17017 | -5/Factory | Identified exit to Factory 17262 | -5/Factory | First assault squad dispatched 17403 | -5/Factory | Garrison activated, responded to threat 17507 | -5/Factory | Lost 10 parts (2p1n3u4w) 17510 | -5/Factory | Destroyed 8 combat bots 17617 | -5/Factory | Lost 6 parts (1p2n3u) 17943 | -5/Factory | Build established: Scavenger-Mutant 17961 | -5/Factory | Core integrity fell below 50% 18000 | -5/Factory | Lost 3 parts (1n1u1w) 18019 | -5/Factory | System corruption reached 10% 18022 | -5/Factory | Garrison activated, responded to threat 18043 | -5/Factory | Released all parts (3) 18070 | -5/Factory | Lost 7 parts (2p2n1u2w) 18071 | -5/Factory | Core integrity fell below 20% 18097 | -5/Factory | Destroyed by 6S-H0T with 6S-H0T's Six Shooter Last Messages --------------- 18052_ Dropped Lgt. Antimatter Reactor. 18054_ Acquired 101 matter. 18056_ Acquired Linear Gravjet. 18059_ Slug penetrates Wall. 18060_ Acquired Linear Gravjet. 18063_ Slug penetrates Wall. 18068_ C-45 Heavy ARC bursts open, deploying its payload. 18068_ G-67 Veteran unfolds itself. 18068_ B-60 Warrior unfolds itself. 18068_ G-50 Soldier unfolds itself. 18068_ B-60 Warrior unfolds itself. 18068_ I-47 Archangel unfolds itself. 18069_ Critical hit (Burn: +37). 18070_ K-01 Serf collects debris. 18075_ System corrupted: Energy discharge (-8). 18081_ Acquired Adv. Signal Interpreter. 18084_ Adv. Signal Interpreter blasted off. 18084_ Linear Gravjet destroyed. 18084_ Linear Gravjet blasted off. 18092_ System corrupted: Matter fused (-9). Map ----- +----------------------------------------------------+ | ?????????????????????????????????????????????????? | | ?????????????????????????????????????????????????? | | ?????????????????????????????????????????????????? | | ?????????????????????????????????????????????????? | | ????????????????????????????????????????????????? | | ????????????????????????????????????????????????? | | ???????????????????????????????????????????????? | | ????????????????????????????????????????????????? | | ?????????????????????????????????????????????????" | | ?????????????????????????????????????????????????G | | ??????????????????????? ???????????????????????" | | ????????????????????? ####??????????????????? | | ????????????????????? ???????????????????? | | ????????????????????? ????????????????????? | | ????????????????????? ????????????????????? | | ?????????????????????# u ????????????????????? | | ?????????????????????# #????????????????????? | | ?????????????????????#u #????????????????????? | | ?????????????????????# #????????????????????? | | ?????????????????????# #????????????????????? | | ?????????????????????# #????????????????????? | | ?????????????????????# #????????????????????? | | ?????????????????????# #????????????????????? | | ?????????????????????# #????????????????????? | | ?????????????????????# #????????????????????? | | ?????????????????????# @ #???"? #?????????????? | | ?????????????????????# k#???"" #?????????????? | | ?????????????????????# #??""" #?????????????? | | ?????????????????????# #??""" #?????????????? | | ?????????????????????# # #?????????????? | | ?????????????????????# + ##############? | | ?????????????????????# # !!! # #? | | ?????????????######### # !!! # ## | | ???????????? + !!! # "/" | | ???????????????#### # # === ## | | ???????????????# # # #? | | ???????????????# " #? # == ## | | ???????????????# ######## #?######! ## | | ???????????????## #???????# #??????# """""" #? | | ????????????????# ????????# #??????# """""" #? | | ????????????????# ????????# #??????# """""" #? | | ????????????????? ????????# #??????# """""" #? | | ????????????????? ????????# #??????# #? | | ????????????????? ????????# #??????######+#######? | | ????????????????# #########/########?# +???? | | ????????????????# ## # #??? | | ????????????????# ## """ """ """ """ # #? | | ????????????????# ## """ """ """ """ # # | | ???????????###### ## """ """ """ """ / " | | ???????????# # ## "" "" "" "" # # | +----------------------------------------------------+ Best States ------------- Heat Dissipation 192 Coolant Potential 65 Energy Generation 45 Energy Capacity 1100 Matter Stores 300 Matter Capacity 300 Sight Range 16 Robot Scan Range 20 Terrain Scan Range 16 Terrain Scan Density 85 Additional Mass Support 12 Base Temperature (-) 100 EM Shielding 3 Corruption Containment 8 Corruption Block 8 Armor Coverage 825 Utility Shielding 66 Evasion (%) 63 Core Analysis 6 Recoil Reduction 6 Particle Charging 20 Offensive Hacking 10 Defensive Hacking 12 Authchip Count 1 Item Schematics ----------------- Shock Rifle | -9/Materials | Scanalyzed Aluminum Leg | -9/Materials | Scanalyzed Imp. Carbon-fiber Leg | -8/Materials | Scanalyzed Exp. Sensor Array | -8/Materials | Scanalyzed Imp. Utility Shielding | -8/Materials | Scanalyzed Enh. Autogun | -8/Materials | Scanalyzed Deuterium Engine | -8/Materials | Scanalyzed Mak. Axe | -8/Materials | Scanalyzed Imp. Weapon Shielding | -8/Storage | Hacked Matter Filter | -8/Storage | Hacked Hvy. Ion Cannon | -8/Storage | Hacked Flak Gun | -8/Storage | Hacked Lgt. Angular Momentum Engine | -8/Storage | Hacked Cryofiber Web | -7/Factory | Scanalyzed Hcp. Storage Unit | -7/Factory | Hacked Hyp. Coil Gun | -7/Factory | Hacked Robot Schematics ------------------ B-36 Bruiser | -8/Storage | Hacked Fabricated ------------ Imp. Dynamic Insulation System | x2 | -7/Factory | Preloaded Imp. Carbon-fiber Leg | x2 | -7/Factory Imp. Carbon-fiber Leg | x2 | -7/Factory Mni. Drone Bay | x1 | -7/Factory | Preloaded Hcp. Storage Unit | x1 | -7/Factory B-36 Bruiser | x3 | -6/Factory Repaired ---------- Imp. Terrain Scanner | 31% | -9/Materials Imp. Ion Engine | 47% | -9/Materials Med. Treads | 7% | -8/Materials Med. Treads | 30% | -8/Materials Med. Treads | 40% | -8/Materials Enh. Autogun | 56% | -8/Materials Med. Treads | 55% | -8/Materials Imp. Utility Shielding | 72% | -8/Materials Shock Rifle | 40% | -8/Materials Imp. Utility Shielding | 79% | -8/Materials Disposable Heat Sink | 28% | -8/Materials Rocket Launcher | 67% | -8/Materials Hvy. Ion Engine | 76% | -8/Materials Med. Treads | 89% | -8/Materials Med. Treads | 89% | -8/Materials Adv. Heat Sink | 82% | -8/Materials Lrg. Storage Unit | 98% | -8/Materials Imp. Carbon-fiber Leg | 12% | -6/Factory Myomer Leg | 38% | -5/Factory Studied --------- Aluminum Leg | -9/Materials | Hacked Alien Tech Used ----------------- None Achievements -------------- None Challenges ------------ None Game ------ Seed NetworkNeutrinoCore Manual? 0 Play Time 02:34:50 Cumulative 392.3 hours Start 2025.12.08 @ 08:08:05 End 2025.12.08 @ 10:51:29 Sessions 1 Manual Loads 0 Difficulty Rogue Special Mode None Game No. 401 Rogue 397 Adventurer 3 Explorer 1 Win Type - Total 5 Types 4/0/1/0/0/0/0/0/0/0 Lore% 85 Gallery% 80 Achievement% 68 Wizard Run 0 Options --------- Layout 0 ASCII 0 Keyboard 0 Movement Mouse Keybinds 0 Fullscreen 2 Font 18/SmallcapsGlow Map View 76x50 Zoom Use 0% Tactical HUD 1 Map Filters NONE Filters NONE Steam 1 RUN: 68ef3ea6-6db6-4882-8b04-b13c713a3b18